fUST/lending_fUST_20260610
["ID","MTS","AMOUNT","RATE_DAILY","PERIOD"]
[424685540,1781047840000,-500.0,0.00019178,2]
[424685538,1781047840000,-1469.07,0.00019178,2]
[424685534,1781047840000,-1030.47,0.00019178,2]
[424685542,1781047840000,-500.0,0.00019178,2]
[424685546,1781047840000,-500.0,0.00019178,2]
[424685548,1781047840000,-500.0,0.00019178,2]
[424685495,1781047840000,-500.0,0.00019178,2]
[424685490,1781047840000,-338.40853211,0.00019178,2]
[424685430,1781047840000,-461.36501822,0.00019178,2]
[424685488,1781047840000,-600.0,0.00019178,2]
[424685492,1781047840000,-300.0,0.00019178,2]
[424685437,1781047840000,-500.0,0.00019178,2]
[424685445,1781047840000,-500.0,0.00019178,2]
[424685435,1781047840000,-500.0,0.00019178,2]
[424685431,1781047840000,-530.91,0.00019178,2]
[424685550,1781047840000,-500.0,0.00019178,2]
[424685441,1781047840000,-500.0,0.00019178,2]
[424685439,1781047840000,-500.0,0.00019178,2]
[424685448,1781047840000,-500.0,0.00019178,2]
[424685447,1781047840000,-500.0,0.00019178,2]
[424685452,1781047840000,-500.0,0.00019178,2]
[424685450,1781047840000,-500.0,0.00019178,2]
[424685454,1781047840000,-540.95,0.00019178,2]
[424685467,1781047840000,-500.0,0.00019178,2]
[424685469,1781047840000,-500.0,0.00019178,2]
[424685443,1781047840000,-500.0,0.00019178,2]
[424685471,1781047840000,-500.0,0.00019178,2]
[424685486,1781047840000,-749.8,0.00019178,2]
[424685473,1781047840000,-500.0,0.00019178,2]
[424685482,1781047840000,-500.0,0.00019178,2]
[424685481,1781047840000,-248.6,0.00019178,2]
[424685460,1781047840000,-500.0,0.00019178,2]
[424685463,1781047840000,-500.0,0.00019178,2]
[424685458,1781047840000,-500.0,0.00019178,2]
[424685484,1781047840000,-500.0,0.00019178,2]
[424685465,1781047840000,-500.0,0.00019178,2]
[424685461,1781047840000,-500.0,0.00019178,2]
[424685475,1781047840000,-500.0,0.00019178,2]
[424685479,1781047840000,-300.0,0.00019178,2]
[424685477,1781047840000,-300.0,0.00019178,2]
[424685456,1781047840000,-500.0,0.00019178,2]
[424685552,1781047841000,-200.43419642,0.00019178,2]
[424685556,1781047841000,-751.37,0.00019178,2]
[424685560,1781047841000,-546.23,0.00019178,2]
[424685562,1781047841000,-540.88,0.00019178,2]
[424685564,1781047841000,-558.34,0.00019178,2]
[424685558,1781047841000,-500.0,0.00019178,2]
[424685555,1781047841000,-299.56580358,0.00019178,2]
[424685566,1781047841000,-778.11,0.00019178,2]
[424685569,1781047841000,-596.67734043,0.00019178,2]
[424685567,1781047841000,-500.0,0.00019178,2]
[424685954,1781047847000,-500.0,0.00019178,2]
[424685952,1781047847000,-838.02265957,0.00019178,2]
[424685955,1781047847000,-500.0,0.00019178,2]
[424685953,1781047847000,-500.0,0.00019178,2]
[424685956,1781047847000,-318.00488679,0.00019178,2]
[424686011,1781049031000,-3761.41354234,0.00014939,2]
[424686009,1781049031000,-311.82392788,0.00014939,2]
[424686013,1781049031000,-689.12710823,0.0001509,2]
[424686641,1781049043000,-615.908,0.0001509,2]
[424686939,1781049046000,-400.0,0.0001509,2]
[424687328,1781049710000,-750.0,0.00014642,2]
[424687354,1781050233000,-300.0,0.00014785,2]
[424687366,1781050233000,-300.0,0.00014785,2]
[424687365,1781050233000,-300.0,0.00014785,2]
[424687363,1781050233000,-300.0,0.00014785,2]
[424687357,1781050233000,-300.0,0.00014785,2]
[424687358,1781050233000,-300.0,0.00014785,2]
[424687353,1781050233000,-300.0,0.00014785,2]
[424687355,1781050233000,-300.0,0.00014785,2]
[424687349,1781050233000,-500.0,0.00014496,2]
[424687351,1781050233000,-500.0,0.00014642,2]
[424687375,1781050233000,-475.77189465,0.00015862,2]
[424687360,1781050233000,-300.0,0.00014785,2]
[424687361,1781050233000,-300.0,0.00014785,2]
[424687362,1781050233000,-300.0,0.00014785,2]
[424687350,1781050233000,-500.0,0.00014496,2]
[424687348,1781050233000,-5000.0,0.00014207,2]
[424687352,1781050233000,-1040.17416626,0.0001465,3]
[424687376,1781050233000,-500.0,0.00015862,2]
[424687380,1781050233000,-330.66239065,0.00015862,2]
[424687364,1781050233000,-300.0,0.00014785,2]
[424687368,1781050233000,-300.0,0.00014785,2]
[424687387,1781050233000,-117.44386522,0.00016197,2]
[424687386,1781050233000,-160.5669078,0.00016112,2]
[424687385,1781050233000,-202.96765934,0.00015863,7]
[424687384,1781050233000,-200.91,0.00015863,7]
[424687382,1781050233000,-349.27846642,0.00015862,2]
[424687381,1781050233000,-169.33760935,0.00015862,2]
[424687378,1781050233000,-500.0,0.00015862,2]
[424687383,1781050233000,-214.62737064,0.00015862,2]
[424687377,1781050233000,-500.0,0.00015862,2]
[424687374,1781050233000,-500.0,0.00015862,2]
[424687372,1781050233000,-202.96765934,0.00015552,7]
[424687371,1781050233000,-210.71101249,0.00015452,2]
[424687373,1781050233000,-238.0,0.00015562,3]
[424687369,1781050233000,-300.0,0.00014785,2]
[424687370,1781050233000,-600.0,0.0001508,2]
[424687379,1781050233000,-500.0,0.00015862,2]
[424687367,1781050233000,-300.0,0.00014785,2]
[424687403,1781050238000,-652.7317321,0.00016761,2]
[424687401,1781050238000,-720.0,0.00016588,2]
[424687398,1781050238000,-202.96765934,0.0001633,7]
[424687400,1781050238000,-152.0,0.00016501,7]
[424687407,1781050238000,-186.0,0.00016888,2]
[424687396,1781050238000,-567.71572498,0.00016197,2]
[424687411,1781050238000,-186.99338574,0.00017037,2]
[424687405,1781050238000,-202.96765934,0.00016796,7]
[424687420,1781050238000,-136.15239379,0.00017136,2]
[424687409,1781050238000,-412.888,0.00016888,2]
[424687423,1781050238000,-768.72334842,0.00017263,2]
[424687425,1781050238000,-203.23418359,0.00017308,2]
[424687422,1781050238000,-161.99829383,0.00017182,7]
[424687421,1781050238000,-1593.51073641,0.00017136,2]
[424687424,1781050238000,-160.0,0.00017263,2]
[424687428,1781050238000,-221.152806,0.00017443,2]
[424687426,1781050238000,-164.946,0.00017418,2]
[424687427,1781050238000,-202.96765934,0.00017418,7]
[424687430,1781050238000,-639.34187099,0.0001768,2]
[424687431,1781050238000,-6861.11917262,0.0001768,2]
[424687432,1781050238000,-1285.10008273,0.0001768,2]
[424687429,1781050238000,-540.69950878,0.0001768,2]
[424687419,1781050238000,-902.55099576,0.00017037,2]
[424687444,1781050240000,-9.31202208,0.0001768,2]
[424687446,1781050240000,-572.2795934,0.000178,2]
[424687452,1781050240000,-823.31531825,0.000178,2]
[424687455,1781050240000,-321.97376732,0.00018219,2]
[424687465,1781050240000,-363.632055,0.00018678,2]
[424687457,1781050240000,-864.0,0.00018246,2]
[424687463,1781050240000,-11102.17123949,0.00018678,2]
[424687467,1781050240000,-1662.54163905,0.00018678,2]
[424687459,1781050240000,-825.0,0.00018399,2]
[424687453,1781050240000,-825.0,0.000179,2]
[424687461,1781050240000,-711.8,0.0001863,2]
[424687516,1781050243000,-1029.63814738,0.00018678,2]
[424687515,1781050243000,-19164.18977073,0.00018678,2]
[424687518,1781050246000,-30523.5169904,0.00018678,2]
[424687517,1781050246000,-1257.029997,0.00018678,2]
[424687596,1781051432000,-500.0,0.00016022,2]
[424687601,1781051432000,-500.0,0.00016022,2]
[424687605,1781051432000,-63.49520361,0.00016022,2]
[424687611,1781051432000,-7315.45896097,0.00016023,2]
[424687604,1781051432000,-436.50479639,0.00016022,2]
[424687606,1781051432000,-500.0,0.00016022,2]
[424687600,1781051432000,-500.0,0.00016022,2]
[424687599,1781051432000,-500.0,0.00016022,2]
[424687597,1781051432000,-500.0,0.00016022,2]
[424687592,1781051432000,-169.0,0.00014959,3]
[424687593,1781051432000,-386.19687718,0.00015162,2]
[424687594,1781051432000,-14974.5283036,0.00015163,2]
[424687595,1781051432000,-1221.14554772,0.00015945,2]
[424687602,1781051432000,-358.22359071,0.00016022,2]
[424687591,1781051432000,-500.0,0.00014642,2]
[424687589,1781051432000,-874.51878425,0.00014642,2]
[424687590,1781051432000,-1063.41637251,0.00014642,2]
[424687588,1781051432000,-303.0,0.0001311,2]
[424687587,1781051432000,-5000.0,0.00012979,2]
[424687598,1781051432000,-500.0,0.00016022,2]
[424687612,1781051432000,-161.945897,0.00016045,2]
[424687603,1781051432000,-500.0,0.00016022,2]
[424687610,1781051432000,-876.04006851,0.00016023,2]
[424687631,1781051432000,-1879.85275017,0.000177,2]
[424687628,1781051432000,-91.94802965,0.00017606,7]
[424687630,1781051432000,-179.5881,0.00017627,2]
[424687607,1781051432000,-300.69550133,0.00016022,2]
[424687627,1781051432000,-450.5559262,0.00017606,7]
[424687623,1781051432000,-207.01697469,0.00017588,7]
[424687622,1781051432000,-253.58298583,0.000174,2]
[424687615,1781051432000,-166.477,0.00017265,2]
[424687620,1781051432000,-253.58298583,0.000173,2]
[424687617,1781051432000,-289.57281107,0.00017266,2]
[424687619,1781051432000,-186.0,0.00017292,2]
[424687629,1781051432000,-357.66132708,0.00017606,7]
[424687621,1781051432000,-152.0,0.000173,7]
[424687616,1781051432000,-479.15053735,0.00017266,2]
[424687618,1781051432000,-160.0,0.00017266,2]
[424687613,1781051432000,-250.0,0.00017097,2]
[424687624,1781051432000,-193.89,0.0001759,2]
[424687614,1781051432000,-9925.11756773,0.00017173,2]
[424687625,1781051432000,-253.58298583,0.000176,2]
[424687609,1781051432000,-1183.78175582,0.00016023,2]
[424687608,1781051432000,-300.0,0.00016022,2]
[424687626,1781051432000,-2170.15865208,0.000176,2]
[424687633,1781051438000,-499.91472783,0.000177,2]
[424687635,1781051438000,-500.0,0.00017799,2]
[424687636,1781051438000,-825.0,0.000179,2]
[424687637,1781051438000,-422.92326214,0.00017993,2]
[424687634,1781051438000,-500.0,0.00017799,2]
[424688581,1781052632000,-292.00040099,0.00014344,2]
[424688582,1781052632000,-165.0,0.00014932,3]
[424688580,1781052632000,-5000.0,0.00014201,2]
[424688583,1781052632000,-500.0,0.00014932,2]
[424688584,1781052632000,-500.0,0.00014932,2]
[424688585,1781052632000,-300.0,0.00015078,2]
[424688586,1781052632000,-300.0,0.00015078,2]
[424688590,1781052632000,-300.0,0.00015078,2]
[424688588,1781052632000,-300.0,0.00015078,2]
[424688587,1781052632000,-300.0,0.00015078,2]
[424688589,1781052632000,-300.0,0.00015078,2]
[424688598,1781052632000,-300.0,0.00015078,2]
[424688599,1781052632000,-300.0,0.00015078,2]
[424688594,1781052632000,-300.0,0.00015078,2]
[424688593,1781052632000,-300.0,0.00015078,2]
[424688592,1781052632000,-300.0,0.00015078,2]
[424688595,1781052632000,-300.0,0.00015078,2]
[424688596,1781052632000,-300.0,0.00015078,2]
[424688597,1781052632000,-300.0,0.00015078,2]
[424688602,1781052632000,-197.43633341,0.00015447,2]
[424688600,1781052632000,-600.0,0.00015379,2]
[424688603,1781052632000,-65.7023613,0.00015447,2]
[424688601,1781052632000,-162.9088668,0.00015442,2]
[424688591,1781052632000,-300.0,0.00015078,2]
[424688669,1781052638000,-164.38863115,0.00015447,2]
[424688661,1781052638000,-5000.0,0.00015293,2]
[424688667,1781052638000,-176.52924033,0.00015447,2]
[424688663,1781052638000,-85.46447499,0.00015447,2]
[424688671,1781052638000,-222.65735485,0.00015447,2]
[424688665,1781052638000,-175.76050604,0.00015447,2]
[424688746,1781052639000,-310.7565135,0.0001814,2]
[424688731,1781052639000,-823.0,0.0001799,2]
[424688737,1781052639000,-151.0,0.00018107,2]
[424688742,1781052639000,-500.0,0.0001814,2]
[424688733,1781052639000,-825.0,0.00018021,2]
[424688735,1781052639000,-167.467,0.00018021,2]
[424688730,1781052639000,-221.0214,0.00017943,2]
[424688754,1781052639000,-314.21996738,0.00018142,2]
[424688756,1781052639000,-314.21996739,0.00018145,2]
[424688760,1781052639000,-404.94415452,0.00018401,2]
[424688758,1781052639000,-614.22297881,0.00018401,2]
[424688747,1781052639000,-500.0,0.0001814,2]
[424688749,1781052639000,-500.0,0.0001814,2]
[424688770,1781052639000,-5800.72128684,0.000185,2]
[424688764,1781052639000,-2099.02828019,0.0001843,2]
[424688751,1781052639000,-500.0,0.0001814,2]
[424688753,1781052639000,-500.0,0.0001814,2]
[424688766,1781052639000,-19660.19607264,0.0001843,2]
[424688768,1781052639000,-2240.09978535,0.000185,2]
[424688772,1781052639000,-795.0,0.000186,2]
[424688738,1781052639000,-500.0,0.0001814,2]
[424688775,1781052639000,-664.35,0.0001863,2]
[424688774,1781052639000,-864.0,0.00018608,2]
[424688786,1781052639000,-1000.0,0.00018678,2]
[424688781,1781052639000,-1000.0,0.00018678,2]
[424688788,1781052639000,-1000.0,0.00018678,2]
[424688777,1781052639000,-155.0,0.00018648,2]
[424688762,1781052639000,-3344.56070934,0.0001843,2]
[424688728,1781052639000,-659.86660681,0.00017774,2]
[424688717,1781052639000,-169.05532389,0.000176,2]
[424688726,1781052639000,-354.68081602,0.00017774,2]
[424688783,1781052639000,-1000.0,0.00018678,2]
[424688675,1781052639000,-159.94578907,0.00015461,2]
[424688673,1781052639000,-177.90765743,0.00015461,2]
[424688677,1781052639000,-1402.117584,0.00015948,2]
[424688678,1781052639000,-3865.1130733,0.00016158,2]
[424688680,1781052639000,-343.90212802,0.00016443,2]
[424688691,1781052639000,-500.0,0.00016992,2]
[424688693,1781052639000,-500.0,0.00016992,2]
[424688685,1781052639000,-152.13,0.00016936,2]
[424688682,1781052639000,-214.89,0.00016898,2]
[424688687,1781052639000,-500.0,0.00016991,2]
[424688684,1781052639000,-720.0,0.00016916,2]
[424688689,1781052639000,-500.0,0.00016992,2]
[424688740,1781052639000,-210.48685094,0.0001814,2]
[424688695,1781052639000,-500.0,0.00016992,2]
[424688699,1781052639000,-500.0,0.00016992,2]
[424688705,1781052639000,-160.0,0.00017263,2]
[424688701,1781052639000,-152.37,0.0001708,2]
[424688703,1781052639000,-768.72334842,0.00017263,2]
[424688707,1781052639000,-314.21996738,0.00017278,2]
[424688715,1781052639000,-153.45,0.0001754,2]
[424688711,1781052639000,-152.85,0.00017372,2]
[424688713,1781052639000,-169.05532389,0.000174,2]
[424688718,1781052639000,-828.06789875,0.00017606,7]
[424688709,1781052639000,-169.05532389,0.000173,2]
[424688720,1781052639000,-192.1368177,0.00017774,2]
[424688722,1781052639000,-366.59255934,0.00017774,2]
[424688724,1781052639000,-345.84627185,0.00017774,2]
[424688697,1781052639000,-500.0,0.00016992,2]
[424688779,1781052639000,-1000.0,0.00018678,2]
[424688744,1781052639000,-500.0,0.0001814,2]
[424688791,1781052639000,-822.04142055,0.00018678,2]
[424688854,1781052639000,-500.0,0.00019178,2]
[424688852,1781052639000,-500.0,0.00019178,2]
[424688855,1781052639000,-300.0,0.00019178,2]
[424688859,1781052639000,-500.0,0.00019178,2]
[424688860,1781052639000,-500.0,0.00019178,2]
[424688857,1781052639000,-300.0,0.00019178,2]
[424688862,1781052639000,-500.0,0.00019178,2]
[424688864,1781052639000,-500.0,0.00019178,2]
[424688875,1781052639000,-500.0,0.00019178,2]
[424688877,1781052639000,-500.0,0.00019178,2]
[424688878,1781052639000,-500.0,0.00019178,2]
[424688871,1781052639000,-937.39,0.00019178,2]
[424688873,1781052639000,-500.0,0.00019178,2]
[424688838,1781052639000,-500.0,0.00019178,2]
[424688868,1781052639000,-500.0,0.00019178,2]
[424688881,1781052639000,-500.0,0.00019178,2]
[424688901,1781052639000,-500.0,0.00019178,2]
[424688884,1781052639000,-500.0,0.00019178,2]
[424688887,1781052639000,-500.0,0.00019178,2]
[424688889,1781052639000,-500.0,0.00019178,2]
[424688895,1781052639000,-500.0,0.00019178,2]
[424688892,1781052639000,-500.0,0.00019178,2]
[424688903,1781052639000,-500.0,0.00019178,2]
[424688899,1781052639000,-500.0,0.00019178,2]
[424688905,1781052639000,-500.0,0.00019178,2]
[424688898,1781052639000,-518.06,0.00019178,2]
[424688906,1781052639000,-500.0,0.00019178,2]
[424688784,1781052639000,-1000.0,0.00018678,2]
[424688866,1781052639000,-500.0,0.00019178,2]
[424688836,1781052639000,-500.0,0.00019178,2]
[424688869,1781052639000,-500.0,0.00019178,2]
[424688839,1781052639000,-500.0,0.00019178,2]
[424688848,1781052639000,-500.0,0.00019178,2]
[424688793,1781052639000,-221.0214,0.00018699,2]
[424688804,1781052639000,-200.0,0.00018823,2]
[424688806,1781052639000,-664.35,0.00018904,2]
[424688795,1781052639000,-168.0,0.00018767,3]
[424688797,1781052639000,-160.0,0.00018774,2]
[424688808,1781052639000,-245.74601182,0.00019078,2]
[424688810,1781052639000,-274.60713205,0.00019138,7]
[424688799,1781052639000,-417.15472785,0.00018774,2]
[424688802,1781052639000,-221.94879446,0.00018823,2]
[424688811,1781052639000,-435.42,0.00019168,3]
[424688801,1781052639000,-208.40719843,0.00018807,2]
[424688813,1781052639000,-564.45,0.00019178,2]
[424688815,1781052639000,-500.0,0.00019178,2]
[424688817,1781052639000,-549.94,0.00019178,2]
[424688790,1781052639000,-1000.0,0.00018678,2]
[424688846,1781052639000,-500.0,0.00019178,2]
[424688824,1781052639000,-500.0,0.00019178,2]
[424688818,1781052639000,-500.0,0.00019178,2]
[424688820,1781052639000,-500.0,0.00019178,2]
[424688830,1781052639000,-500.0,0.00019178,2]
[424688828,1781052639000,-1239.06,0.00019178,2]
[424688832,1781052639000,-500.0,0.00019178,2]
[424688908,1781052639000,-500.0,0.00019178,2]
[424688834,1781052639000,-500.0,0.00019178,2]
[424688822,1781052639000,-500.0,0.00019178,2]
[424688843,1781052639000,-500.0,0.00019178,2]
[424688845,1781052639000,-500.0,0.00019178,2]
[424688850,1781052639000,-500.0,0.00019178,2]
[424688841,1781052639000,-506.65,0.00019178,2]
[424688983,1781052640000,-1669.76,0.00019178,2]
[424688986,1781052640000,-500.0,0.00019178,2]
[424688972,1781052640000,-500.0,0.00019178,2]
[424688988,1781052640000,-500.0,0.00019178,2]
[424688984,1781052640000,-8914.33,0.00019178,2]
[424688965,1781052640000,-500.0,0.00019178,2]
[424688959,1781052640000,-592.04,0.00019178,2]
[424688961,1781052640000,-633.25,0.00019178,2]
[424688981,1781052640000,-785.88,0.00019178,2]
[424688963,1781052640000,-1086.55,0.00019178,2]
[424688978,1781052640000,-500.0,0.00019178,2]
[424688976,1781052640000,-500.0,0.00019178,2]
[424688990,1781052640000,-2879.64,0.00019178,2]
[424688979,1781052640000,-3786.4,0.00019178,2]
[424688993,1781052640000,-500.0,0.00019178,2]
[424689007,1781052640000,-500.0,0.00019178,2]
[424689005,1781052640000,-802.86,0.00019178,2]
[424688996,1781052640000,-500.0,0.00019178,2]
[424689002,1781052640000,-2158.62,0.00019178,2]
[424689000,1781052640000,-500.0,0.00019178,2]
[424688998,1781052640000,-500.0,0.00019178,2]
[424688995,1781052640000,-500.0,0.00019178,2]
[424689003,1781052640000,-500.0,0.00019178,2]
[424689016,1781052640000,-500.0,0.00019178,2]
[424689011,1781052640000,-500.0,0.00019178,2]
[424689018,1781052640000,-500.0,0.00019178,2]
[424689012,1781052640000,-1513.01,0.00019178,2]
[424689028,1781052640000,-500.0,0.00019178,2]
[424689021,1781052640000,-500.0,0.00019178,2]
[424688991,1781052640000,-500.0,0.00019178,2]
[424688974,1781052640000,-500.0,0.00019178,2]
[424688910,1781052640000,-500.0,0.00019178,2]
[424688968,1781052640000,-1301.1375,0.00019178,2]
[424689020,1781052640000,-1546.08,0.00019178,2]
[424688914,1781052640000,-533.85,0.00019178,2]
[424688915,1781052640000,-500.0,0.00019178,2]
[424688917,1781052640000,-500.0,0.00019178,2]
[424688919,1781052640000,-500.0,0.00019178,2]
[424688921,1781052640000,-500.0,0.00019178,2]
[424688931,1781052640000,-500.0,0.00019178,2]
[424688933,1781052640000,-500.0,0.00019178,2]
[424688912,1781052640000,-500.0,0.00019178,2]
[424688926,1781052640000,-500.0,0.00019178,2]
[424688922,1781052640000,-500.0,0.00019178,2]
[424688927,1781052640000,-500.0,0.00019178,2]
[424688924,1781052640000,-500.0,0.00019178,2]
[424688929,1781052640000,-500.0,0.00019178,2]
[424688936,1781052640000,-651.02,0.00019178,2]
[424688935,1781052640000,-500.0,0.00019178,2]
[424688938,1781052640000,-500.0,0.00019178,2]
[424688943,1781052640000,-589.7,0.00019178,2]
[424688940,1781052640000,-500.0,0.00019178,2]
[424688942,1781052640000,-2671.8,0.00019178,2]
[424688954,1781052640000,-500.0,0.00019178,2]
[424688945,1781052640000,-500.0,0.00019178,2]
[424688949,1781052640000,-500.0,0.00019178,2]
[424688957,1781052640000,-500.0,0.00019178,2]
[424688956,1781052640000,-573.23130164,0.00019178,2]
[424688947,1781052640000,-500.0,0.00019178,2]
[424688950,1781052640000,-500.0,0.00019178,2]
[424688952,1781052640000,-2717.71,0.00019178,2]
[424688967,1781052640000,-2014.39,0.00019178,2]
[424688970,1781052640000,-500.0,0.00019178,2]
[424689009,1781052640000,-500.0,0.00019178,2]
[424689014,1781052640000,-500.0,0.00019178,2]
[424689104,1781052640000,-201.882917,0.00019178,2]
[424689077,1781052640000,-1498.1,0.00019178,2]
[424689075,1781052640000,-500.0,0.00019178,2]
[424689079,1781052640000,-500.0,0.00019178,2]
[424689081,1781052640000,-500.0,0.00019178,2]
[424689082,1781052640000,-500.0,0.00019178,2]
[424689106,1781052640000,-201.882917,0.00019178,2]
[424689110,1781052640000,-201.882917,0.00019178,2]
[424689102,1781052640000,-201.882917,0.00019178,2]
[424689118,1781052640000,-201.882917,0.00019178,2]
[424689100,1781052640000,-201.882917,0.00019178,2]
[424689098,1781052640000,-201.882917,0.00019178,2]
[424689111,1781052640000,-201.882917,0.00019178,2]
[424689108,1781052640000,-201.882917,0.00019178,2]
[424689113,1781052640000,-201.882917,0.00019178,2]
[424689115,1781052640000,-201.882917,0.00019178,2]
[424689120,1781052640000,-201.882923,0.00019178,2]
[424689117,1781052640000,-201.882917,0.00019178,2]
[424689122,1781052640000,-664.35,0.00019178,2]
[424689124,1781052640000,-245.74601181,0.00019215,2]
[424689126,1781052640000,-245.74601181,0.00019352,2]
[424689130,1781052640000,-500.0,0.00019452,2]
[424689135,1781052640000,-500.0,0.00019452,2]
[424689128,1781052640000,-500.0,0.00019452,2]
[424689132,1781052640000,-500.0,0.00019452,2]
[424689134,1781052640000,-500.0,0.00019452,2]
[424689137,1781052640000,-1239.06,0.00019452,2]
[424689139,1781052640000,-500.0,0.00019452,2]
[424689023,1781052640000,-2954.84,0.00019178,2]
[424689141,1781052640000,-500.0,0.00019452,2]
[424689096,1781052640000,-201.882917,0.00019178,2]
[424689095,1781052640000,-201.882917,0.00019178,2]
[424689084,1781052640000,-500.0,0.00019178,2]
[424689089,1781052640000,-201.882917,0.00019178,2]
[424689056,1781052640000,-3911.14,0.00019178,2]
[424689046,1781052640000,-500.0,0.00019178,2]
[424689053,1781052640000,-4883.8,0.00019178,2]
[424689040,1781052640000,-2307.46,0.00019178,2]
[424689088,1781052640000,-201.882917,0.00019178,2]
[424689042,1781052640000,-500.0,0.00019178,2]
[424689044,1781052640000,-508.23478326,0.00019178,2]
[424689038,1781052640000,-500.0,0.00019178,2]
[424689035,1781052640000,-500.0,0.00019178,2]
[424689033,1781052640000,-500.0,0.00019178,2]
[424689031,1781052640000,-500.0,0.00019178,2]
[424689025,1781052640000,-699.54,0.00019178,2]
[424689030,1781052640000,-500.0,0.00019178,2]
[424689026,1781052640000,-500.0,0.00019178,2]
[424689037,1781052640000,-500.0,0.00019178,2]
[424689049,1781052640000,-500.0,0.00019178,2]
[424689051,1781052640000,-1935.77,0.00019178,2]
[424689070,1781052640000,-500.0,0.00019178,2]
[424689055,1781052640000,-500.0,0.00019178,2]
[424689060,1781052640000,-500.0,0.00019178,2]
[424689066,1781052640000,-500.0,0.00019178,2]
[424689064,1781052640000,-500.0,0.00019178,2]
[424689067,1781052640000,-1243.13,0.00019178,2]
[424689058,1781052640000,-500.0,0.00019178,2]
[424689072,1781052640000,-2279.89,0.00019178,2]
[424689068,1781052640000,-5195.56,0.00019178,2]
[424689073,1781052640000,-319.71941382,0.00019178,2]
[424689086,1781052640000,-201.882917,0.00019178,2]
[424689091,1781052640000,-201.882917,0.00019178,2]
[424689048,1781052640000,-500.0,0.00019178,2]
[424689093,1781052640000,-201.882917,0.00019178,2]
[424689222,1781052641000,-651.02,0.00019452,2]
[424689224,1781052641000,-500.0,0.00019452,2]
[424689217,1781052641000,-589.68,0.00019452,2]
[424689214,1781052641000,-500.0,0.00019452,2]
[424689228,1781052641000,-2671.8,0.00019452,2]
[424689229,1781052641000,-589.7,0.00019452,2]
[424689221,1781052641000,-500.0,0.00019452,2]
[424689208,1781052641000,-500.0,0.00019452,2]
[424689215,1781052641000,-500.0,0.00019452,2]
[424689210,1781052641000,-500.0,0.00019452,2]
[424689212,1781052641000,-500.0,0.00019452,2]
[424689198,1781052641000,-521.63,0.00019452,2]
[424689226,1781052641000,-500.0,0.00019452,2]
[424689219,1781052641000,-500.0,0.00019452,2]
[424689231,1781052641000,-500.0,0.00019452,2]
[424689262,1781052641000,-3786.4,0.00019452,2]
[424689235,1781052641000,-500.0,0.00019452,2]
[424689233,1781052641000,-500.0,0.00019452,2]
[424689241,1781052641000,-500.0,0.00019452,2]
[424689237,1781052641000,-500.0,0.00019452,2]
[424689245,1781052641000,-592.04,0.00019452,2]
[424689239,1781052641000,-2717.71,0.00019452,2]
[424689246,1781052641000,-1086.55,0.00019452,2]
[424689248,1781052641000,-500.0,0.00019452,2]
[424689257,1781052641000,-500.0,0.00019452,2]
[424689250,1781052641000,-2014.39,0.00019452,2]
[424689255,1781052641000,-500.0,0.00019452,2]